[Event "Titled Tuesday Blitz November 15 Early 2022"]
[White "Jones, Gawain C B"]
[Black "Fernandez Garcia, Gumersindo"]
[WhiteFideId "409561"]
[BlackFideId "24516740"]
[WhiteElo "2657"]
[BlackElo "2140"]
[Result "1-0"]
[Round "02"]
[TimeControl "180+1"]
[Date "2022.11.16"]
[WhiteClock "0:00:11"]
[BlackClock "0:00:07"]

1. Nf3 {[%clk 0:03:00]}  Nf6 {[%clk 0:02:58]} 2. c4 {[%clk 0:02:59]}  g6 {[%clk 0:02:56]} 3. b4 {[%clk 0:02:59]}  Bg7 {[%clk 0:02:55]} 4. Bb2 {[%clk 0:03:00]}  O-O {[%clk 0:02:55]} 5. e3 {[%clk 0:02:59]}  a5 {[%clk 0:02:55]} 6. b5 {[%clk 0:02:58]}  b6 {[%clk 0:02:54]} 7. d4 {[%clk 0:02:56]}  Bb7 {[%clk 0:02:54]} 8. Bd3 {[%clk 0:02:56]}  d6 {[%clk 0:02:53]} 9. O-O {[%clk 0:02:55]}  Nbd7 {[%clk 0:02:51]} 10. d5 {[%clk 0:02:52]}  e6 {[%clk 0:02:47]} 11. e4 {[%clk 0:02:52]}  exd5 {[%clk 0:02:45]} 12. exd5 {[%clk 0:02:48]}  Nc5 {[%clk 0:02:46]} 13. Bc2 {[%clk 0:02:37]}  Re8 {[%clk 0:02:45]} 14. h3 {[%clk 0:02:34]}  Qe7 {[%clk 0:02:38]} 15. Nbd2 {[%clk 0:02:19]}  Qf8 {[%clk 0:02:35]} 16. Nb3 {[%clk 0:02:14]}  Nxb3 {[%clk 0:02:19]} 17. axb3 {[%clk 0:02:15]}  Ne4 {[%clk 0:02:06]} 18. Bxg7 {[%clk 0:01:55]}  Qxg7 {[%clk 0:02:07]} 19. Re1 {[%clk 0:01:44]}  Nc3 {[%clk 0:01:50]} 20. Qd3 {[%clk 0:01:28]}  Ne2+ {[%clk 0:01:48]} 21. Kh2 {[%clk 0:01:23]}  Nf4 {[%clk 0:01:48]} 22. Qd2 {[%clk 0:01:19]}  Qf6 {[%clk 0:01:23]} 23. Rxe8+ {[%clk 0:01:09]}  Rxe8 {[%clk 0:01:24]} 24. Re1 {[%clk 0:01:09]}  Ra8 {[%clk 0:01:08]} 25. Qd4 {[%clk 0:00:56]}  Qxd4 {[%clk 0:01:05]} 26. Nxd4 {[%clk 0:00:57]}  Kf8 {[%clk 0:01:05]} 27. g4 {[%clk 0:00:46]}  Re8 {[%clk 0:00:45]} 28. Rxe8+ {[%clk 0:00:46]}  Kxe8 {[%clk 0:00:46]} 29. Kg3 {[%clk 0:00:46]}  g5 {[%clk 0:00:46]} 30. Bxh7 {[%clk 0:00:46]}  Bc8 {[%clk 0:00:43]} 31. h4 {[%clk 0:00:41]}  f6 {[%clk 0:00:42]} 32. hxg5 {[%clk 0:00:30]}  fxg5 {[%clk 0:00:43]} 33. Bf5 {[%clk 0:00:24]}  Bxf5 {[%clk 0:00:36]} 34. gxf5 {[%clk 0:00:25]}  Nd3 {[%clk 0:00:32]} 35. Kg4 {[%clk 0:00:18]}  Nxf2+ {[%clk 0:00:27]} 36. Kxg5 {[%clk 0:00:19]}  Kf7 {[%clk 0:00:28]} 37. Kf4 {[%clk 0:00:13]}  Nd3+ {[%clk 0:00:27]} 38. Ke3 {[%clk 0:00:12]}  Nc5 {[%clk 0:00:27]} 39. Kd2 {[%clk 0:00:11]}  a4 {[%clk 0:00:26]} 40. bxa4 {[%clk 0:00:10]}  Nxa4 {[%clk 0:00:27]} 41. Ne6 {[%clk 0:00:10]}  Nb2 {[%clk 0:00:26]} 42. Kc3 {[%clk 0:00:10]}  Nd1+ {[%clk 0:00:26]} 43. Kd4 {[%clk 0:00:10]}  Nf2 {[%clk 0:00:12]} 44. Nxc7 {[%clk 0:00:11]}  Ng4 {[%clk 0:00:10]} 45. Na8 {[%clk 0:00:11]}  Ne5 {[%clk 0:00:09]} 46. Nxb6 {[%clk 0:00:12]}  Nf3+ {[%clk 0:00:09]} 47. Kc3 {[%clk 0:00:11]}  Kf6 {[%clk 0:00:08]} 48. Nc8 {[%clk 0:00:11]}  Ke5 {[%clk 0:00:09]} 49. b6 {[%clk 0:00:11]}  Nd4 {[%clk 0:00:07]} 50. b7 {[%clk 0:00:12]}  Ne2+ {[%clk 0:00:07]} 51. Kb2 {[%clk 0:00:11]} 1-0


[Site "https://www.chess.com"]

[Event "Titled Tuesday Blitz November 15 Early 2022"]
[White "Kiseljova, Marya"]
[Black "Parligras, Mircea-Emilian"]
[WhiteFideId "4155009"]
[BlackFideId "1204297"]
[WhiteElo "1907"]
[BlackElo "2507"]
[Result "0-1"]
[Round "02"]
[TimeControl "180+1"]
[Date "2022.11.16"]
[WhiteClock "0:00:09"]
[BlackClock "0:00:20"]

1. d4 {[%clk 0:03:00]}  Nf6 {[%clk 0:02:59]} 2. c4 {[%clk 0:03:00]}  e6 {[%clk 0:02:59]} 3. g3 {[%clk 0:03:00]}  c5 {[%clk 0:02:59]} 4. d5 {[%clk 0:03:00]}  exd5 {[%clk 0:02:59]} 5. cxd5 {[%clk 0:03:01]}  d6 {[%clk 0:03:00]} 6. Nc3 {[%clk 0:03:01]}  g6 {[%clk 0:03:00]} 7. Bg2 {[%clk 0:03:01]}  Bg7 {[%clk 0:03:01]} 8. Nf3 {[%clk 0:03:02]}  O-O {[%clk 0:03:02]} 9. O-O {[%clk 0:03:02]}  Re8 {[%clk 0:03:02]} 10. Re1 {[%clk 0:03:01]}  a6 {[%clk 0:03:00]} 11. a4 {[%clk 0:03:00]}  Ne4 {[%clk 0:02:55]} 12. Qc2 {[%clk 0:02:43]}  Bf5 {[%clk 0:02:39]} 13. Qb3 {[%clk 0:02:31]}  Nd7 {[%clk 0:02:22]} 14. Nh4 {[%clk 0:02:24]}  c4 {[%clk 0:02:21]} 15. Qa3 {[%clk 0:02:03]}  Ndc5 {[%clk 0:02:08]} 16. Nxf5 {[%clk 0:01:56]}  gxf5 {[%clk 0:02:09]} 17. Nxe4 {[%clk 0:01:49]}  fxe4 {[%clk 0:02:07]} 18. Bf4 {[%clk 0:01:44]}  Qb6 {[%clk 0:02:00]} 19. Rab1 {[%clk 0:01:35]}  Rad8 {[%clk 0:01:49]} 20. Rec1 {[%clk 0:01:32]}  Qb3 {[%clk 0:01:39]} 21. Qxb3 {[%clk 0:01:26]}  cxb3 {[%clk 0:01:40]} 22. Bxd6 {[%clk 0:01:25]}  Nxa4 {[%clk 0:01:33]} 23. Ba3 {[%clk 0:01:09]}  Rxd5 {[%clk 0:01:31]} 24. Rc4 {[%clk 0:01:09]}  Rd4 {[%clk 0:01:19]} 25. Rxd4 {[%clk 0:01:02]}  Bxd4 {[%clk 0:01:19]} 26. Bh3 {[%clk 0:00:58]}  b5 {[%clk 0:01:12]} 27. Rd1 {[%clk 0:00:49]}  Bxb2 {[%clk 0:01:08]} 28. Bxb2 {[%clk 0:00:49]}  Nxb2 {[%clk 0:01:09]} 29. Rb1 {[%clk 0:00:49]}  Nc4 {[%clk 0:01:03]} 30. Rxb3 {[%clk 0:00:50]}  e3 {[%clk 0:01:01]} 31. Rb1 {[%clk 0:00:42]}  exf2+ {[%clk 0:00:55]} 32. Kxf2 {[%clk 0:00:43]}  Rb8 {[%clk 0:00:55]} 33. e3 {[%clk 0:00:31]}  b4 {[%clk 0:00:50]} 34. Ra1 {[%clk 0:00:27]}  a5 {[%clk 0:00:43]} 35. Bf1 {[%clk 0:00:26]}  Na3 {[%clk 0:00:44]} 36. Bd3 {[%clk 0:00:21]}  Rc8 {[%clk 0:00:40]} 37. Ke2 {[%clk 0:00:20]}  Rc5 {[%clk 0:00:37]} 38. Kd2 {[%clk 0:00:20]}  Kg7 {[%clk 0:00:37]} 39. h4 {[%clk 0:00:19]}  h6 {[%clk 0:00:37]} 40. Ra2 {[%clk 0:00:17]}  Kf6 {[%clk 0:00:31]} 41. Ra1 {[%clk 0:00:15]}  Ke7 {[%clk 0:00:30]} 42. Rf1 {[%clk 0:00:13]}  Nc4+ {[%clk 0:00:28]} 43. Bxc4 {[%clk 0:00:12]}  Rxc4 {[%clk 0:00:29]} 44. Rf5 {[%clk 0:00:13]}  a4 {[%clk 0:00:28]} 45. Ra5 {[%clk 0:00:12]}  b3 {[%clk 0:00:28]} 46. Kd3 {[%clk 0:00:12]}  Rb4 {[%clk 0:00:22]} 47. Kc3 {[%clk 0:00:11]}  b2 {[%clk 0:00:22]} 48. Ra7+ {[%clk 0:00:10]}  Kf6 {[%clk 0:00:21]} 49. Ra6+ {[%clk 0:00:08]}  Kg7 {[%clk 0:00:21]} 50. Kxb4 {[%clk 0:00:08]}  b1=Q+ {[%clk 0:00:22]} 51. Ka5 {[%clk 0:00:09]}  a3 {[%clk 0:00:21]} 52. h5 {[%clk 0:00:09]}  a2 {[%clk 0:00:20]} 0-1


[Site "https://www.chess.com"]

[Event "Titled Tuesday Blitz November 15 Early 2022"]
[White "Korelskiy, Egor"]
[Black "Szente Varga, Fruzsina"]
[WhiteFideId "34329064"]
[BlackFideId "712264"]
[WhiteElo "2043"]
[BlackElo "1994"]
[Result "1-0"]
[Round "02"]
[TimeControl "180+1"]
[Date "2022.11.16"]
[WhiteClock "0:00:12"]
[BlackClock "0:00:25"]

1. e4 {[%clk 0:03:00]}  e5 {[%clk 0:02:59]} 2. Nf3 {[%clk 0:03:00]}  Nc6 {[%clk 0:03:00]} 3. Bb5 {[%clk 0:03:00]}  a6 {[%clk 0:03:00]} 4. Ba4 {[%clk 0:03:00]}  Nf6 {[%clk 0:03:00]} 5. O-O {[%clk 0:03:01]}  Be7 {[%clk 0:03:00]} 6. Re1 {[%clk 0:03:01]}  b5 {[%clk 0:03:00]} 7. Bb3 {[%clk 0:03:01]}  O-O {[%clk 0:03:00]} 8. h3 {[%clk 0:03:00]}  d6 {[%clk 0:02:56]} 9. c3 {[%clk 0:02:59]}  Na5 {[%clk 0:02:56]} 10. Bc2 {[%clk 0:03:00]}  c5 {[%clk 0:02:56]} 11. d4 {[%clk 0:03:00]}  Qc7 {[%clk 0:02:53]} 12. d5 {[%clk 0:02:59]}  Ne8 {[%clk 0:02:28]} 13. Nbd2 {[%clk 0:02:57]}  g6 {[%clk 0:02:27]} 14. Nf1 {[%clk 0:02:50]}  Ng7 {[%clk 0:02:26]} 15. Bh6 {[%clk 0:02:49]}  Nb7 {[%clk 0:02:13]} 16. Ng3 {[%clk 0:02:48]}  Re8 {[%clk 0:02:07]} 17. Qd2 {[%clk 0:02:47]}  c4 {[%clk 0:02:05]} 18. a4 {[%clk 0:02:45]}  Bd7 {[%clk 0:02:01]} 19. Bg5 {[%clk 0:02:26]}  f6 {[%clk 0:01:51]} 20. Bh6 {[%clk 0:02:19]}  Nc5 {[%clk 0:01:49]} 21. axb5 {[%clk 0:02:04]}  axb5 {[%clk 0:01:49]} 22. Nh2 {[%clk 0:02:00]}  Qb6 {[%clk 0:01:26]} 23. Kh1 {[%clk 0:01:48]}  Qb7 {[%clk 0:01:16]} 24. f4 {[%clk 0:01:34]}  Rxa1 {[%clk 0:01:16]} 25. Rxa1 {[%clk 0:01:33]}  Ra8 {[%clk 0:01:17]} 26. Qc1 {[%clk 0:01:31]}  exf4 {[%clk 0:00:46]} 27. Bxf4 {[%clk 0:01:28]}  Rxa1 {[%clk 0:00:43]} 28. Qxa1 {[%clk 0:01:26]}  b4 {[%clk 0:00:44]} 29. cxb4 {[%clk 0:01:19]}  Qxb4 {[%clk 0:00:45]} 30. Ng4 {[%clk 0:01:15]}  Nd3 {[%clk 0:00:40]} 31. Qa8+ {[%clk 0:01:06]}  Ne8 {[%clk 0:00:33]} 32. Bxd3 {[%clk 0:00:33]}  cxd3 {[%clk 0:00:33]} 33. Qa1 {[%clk 0:00:31]}  Bxg4 {[%clk 0:00:32]} 34. hxg4 {[%clk 0:00:30]}  Kf7 {[%clk 0:00:29]} 35. Qd1 {[%clk 0:00:28]}  Qxb2 {[%clk 0:00:29]} 36. Qxd3 {[%clk 0:00:26]}  Qa1+ {[%clk 0:00:29]} 37. Kh2 {[%clk 0:00:26]}  Nc7 {[%clk 0:00:29]} 38. Qc4 {[%clk 0:00:22]}  Ne8 {[%clk 0:00:29]} 39. Qc8 {[%clk 0:00:19]}  Qd1 {[%clk 0:00:27]} 40. Qe6+ {[%clk 0:00:19]}  Kf8 {[%clk 0:00:28]} 41. Bh6+ {[%clk 0:00:19]}  Ng7 {[%clk 0:00:26]} 42. Bxg7+ {[%clk 0:00:20]}  Kxg7 {[%clk 0:00:26]} 43. Qxe7+ {[%clk 0:00:21]}  Kh6 {[%clk 0:00:27]} 44. Qxf6 {[%clk 0:00:17]}  Qxg4 {[%clk 0:00:27]} 45. Nf5+ {[%clk 0:00:18]}  Kh5 {[%clk 0:00:25]} 46. Qh4+ {[%clk 0:00:11]}  Qxh4+ {[%clk 0:00:25]} 47. Nxh4 {[%clk 0:00:12]}  Kxh4 {[%clk 0:00:26]} 48. e5 {[%clk 0:00:13]}  Kg5 {[%clk 0:00:25]} 49. e6 {[%clk 0:00:12]}  Kf6 {[%clk 0:00:25]} 50. Kg3 {[%clk 0:00:12]} 1-0


[Site "https://www.chess.com"]

[Event "Titled Tuesday Blitz November 15 Early 2022"]
[White "Kostiukov, Alexandr"]
[Black "Seemann, Jakub"]
[WhiteFideId "14108100"]
[BlackFideId "21874697"]
[WhiteElo "2202"]
[BlackElo "2275"]
[Result "0-1"]
[Round "02"]
[TimeControl "180+1"]
[Date "2022.11.16"]
[WhiteClock "0:00:53"]
[BlackClock "0:01:25"]

1. g3 {[%clk 0:03:00]}  Nf6 {[%clk 0:02:59]} 2. Bg2 {[%clk 0:03:01]}  g6 {[%clk 0:02:59]} 3. Nf3 {[%clk 0:03:00]}  Bg7 {[%clk 0:02:59]} 4. c4 {[%clk 0:03:00]}  O-O {[%clk 0:03:00]} 5. O-O {[%clk 0:03:01]}  d6 {[%clk 0:02:57]} 6. d4 {[%clk 0:03:01]}  Nc6 {[%clk 0:02:54]} 7. Nc3 {[%clk 0:03:01]}  Bg4 {[%clk 0:02:52]} 8. h3 {[%clk 0:03:01]}  Bxf3 {[%clk 0:02:52]} 9. Bxf3 {[%clk 0:03:01]}  Nd7 {[%clk 0:02:52]} 10. e3 {[%clk 0:02:57]}  e5 {[%clk 0:02:52]} 11. d5 {[%clk 0:02:57]}  Ne7 {[%clk 0:02:52]} 12. Bg2 {[%clk 0:02:58]}  f5 {[%clk 0:02:52]} 13. h4 {[%clk 0:02:55]}  e4 {[%clk 0:02:51]} 14. Qc2 {[%clk 0:02:44]}  Ne5 {[%clk 0:02:44]} 15. b3 {[%clk 0:02:44]}  Nd3 {[%clk 0:02:41]} 16. Bd2 {[%clk 0:02:41]}  g5 {[%clk 0:02:40]} 17. hxg5 {[%clk 0:02:40]}  Ng6 {[%clk 0:02:40]} 18. f3 {[%clk 0:02:35]}  exf3 {[%clk 0:02:40]} 19. Qxd3 {[%clk 0:02:23]}  Ne5 {[%clk 0:02:35]} 20. Qc2 {[%clk 0:02:20]}  fxg2 {[%clk 0:02:13]} 21. Kxg2 {[%clk 0:02:11]}  Qxg5 {[%clk 0:02:07]} 22. e4 {[%clk 0:02:06]}  Qh5 {[%clk 0:01:44]} 23. exf5 {[%clk 0:01:42]}  Ng4 {[%clk 0:01:42]} 24. Rh1 {[%clk 0:01:35]}  Qxf5 {[%clk 0:01:43]} 25. Qxf5 {[%clk 0:01:33]}  Rxf5 {[%clk 0:01:43]} 26. Be1 {[%clk 0:01:07]}  Ne3+ {[%clk 0:01:33]} 27. Kh2 {[%clk 0:00:58]}  Raf8 {[%clk 0:01:28]} 28. Rc1 {[%clk 0:00:53]}  Rh5+ {[%clk 0:01:25]} 0-1


[Site "https://www.chess.com"]

[Event "Titled Tuesday Blitz November 15 Early 2022"]
[White "Kouskoutis, Georgios-Alexandros"]
[Black "Rose, Felix"]
[WhiteFideId "4234049"]
[BlackFideId "5105722"]
[WhiteElo "2187"]
[BlackElo "2039"]
[Result "1-0"]
[Round "02"]
[TimeControl "180+1"]
[Date "2022.11.16"]
[WhiteClock "0:00:06"]
[BlackClock "0:00:32"]

1. Nf3 {[%clk 0:03:00]}  d5 {[%clk 0:02:57]} 2. g3 {[%clk 0:03:00]}  Nf6 {[%clk 0:02:50]} 3. Bg2 {[%clk 0:03:00]}  c6 {[%clk 0:02:50]} 4. O-O {[%clk 0:02:56]}  Bf5 {[%clk 0:02:50]} 5. b3 {[%clk 0:02:55]}  h6 {[%clk 0:02:49]} 6. Bb2 {[%clk 0:02:55]}  e6 {[%clk 0:02:49]} 7. c4 {[%clk 0:02:55]}  Nbd7 {[%clk 0:02:46]} 8. d3 {[%clk 0:02:56]}  Bh7 {[%clk 0:02:45]} 9. Nbd2 {[%clk 0:02:56]}  Be7 {[%clk 0:02:45]} 10. Qc2 {[%clk 0:02:56]}  O-O {[%clk 0:02:44]} 11. Rad1 {[%clk 0:02:57]}  a5 {[%clk 0:02:43]} 12. a3 {[%clk 0:02:56]}  Qb6 {[%clk 0:02:42]} 13. h3 {[%clk 0:02:25]}  Nc5 {[%clk 0:02:39]} 14. Bd4 {[%clk 0:02:20]}  Qc7 {[%clk 0:02:35]} 15. Qb2 {[%clk 0:02:04]}  Ncd7 {[%clk 0:02:29]} 16. Ne5 {[%clk 0:01:47]}  Nxe5 {[%clk 0:02:19]} 17. Bxe5 {[%clk 0:01:48]}  Bxa3 {[%clk 0:02:18]} 18. Qa1 {[%clk 0:01:06]}  Qe7 {[%clk 0:02:17]} 19. Kh2 {[%clk 0:00:41]}  Bd6 {[%clk 0:02:16]} 20. f4 {[%clk 0:00:40]}  Rfe8 {[%clk 0:02:04]} 21. e4 {[%clk 0:00:35]}  dxe4 {[%clk 0:02:01]} 22. dxe4 {[%clk 0:00:36]}  Bxe5 {[%clk 0:02:00]} 23. Qxe5 {[%clk 0:00:36]}  Nd7 {[%clk 0:01:55]} 24. Qc3 {[%clk 0:00:34]}  Qb4 {[%clk 0:01:54]} 25. Qf3 {[%clk 0:00:28]}  Nc5 {[%clk 0:01:54]} 26. f5 {[%clk 0:00:22]}  f6 {[%clk 0:01:45]} 27. e5 {[%clk 0:00:17]}  exf5 {[%clk 0:01:34]} 28. exf6 {[%clk 0:00:17]}  g5 {[%clk 0:01:23]} 29. Qh5 {[%clk 0:00:15]}  Rf8 {[%clk 0:01:10]} 30. Qxh6 {[%clk 0:00:12]}  Ne6 {[%clk 0:01:03]} 31. Nf3 {[%clk 0:00:11]}  g4 {[%clk 0:00:54]} 32. Rd7 {[%clk 0:00:09]}  Rf7 {[%clk 0:00:36]} 33. Rxf7 {[%clk 0:00:09]}  Kxf7 {[%clk 0:00:37]} 34. Ne5+ {[%clk 0:00:09]}  Kg8 {[%clk 0:00:33]} 35. f7+ {[%clk 0:00:09]}  Kh8 {[%clk 0:00:32]} 36. Ng6# {[%clk 0:00:06]} 1-0


[Site "https://www.chess.com"]

[Event "Titled Tuesday Blitz November 15 Early 2022"]
[White "Kovalev, Vladislav"]
[Black "Gabdrakhmanov, Azat"]
[WhiteFideId "13504398"]
[BlackFideId "34189197"]
[WhiteElo "2556"]
[BlackElo "2254"]
[Result "1-0"]
[Round "02"]
[TimeControl "180+1"]
[Date "2022.11.16"]
[WhiteClock "0:00:02"]
[BlackClock "0:00:02"]

1. e4 {[%clk 0:02:58]}  c5 {[%clk 0:03:00]} 2. Be2 {[%clk 0:02:57]}  e6 {[%clk 0:03:00]} 3. d3 {[%clk 0:02:58]}  Nc6 {[%clk 0:03:00]} 4. f4 {[%clk 0:02:59]}  d5 {[%clk 0:03:00]} 5. Nf3 {[%clk 0:02:59]}  Nf6 {[%clk 0:03:00]} 6. e5 {[%clk 0:03:00]}  Nd7 {[%clk 0:02:59]} 7. c3 {[%clk 0:03:00]}  Be7 {[%clk 0:02:54]} 8. O-O {[%clk 0:03:00]}  h6 {[%clk 0:02:48]} 9. d4 {[%clk 0:02:57]}  g5 {[%clk 0:02:47]} 10. Kh1 {[%clk 0:02:33]}  g4 {[%clk 0:02:45]} 11. Ne1 {[%clk 0:02:31]}  h5 {[%clk 0:02:42]} 12. Be3 {[%clk 0:02:28]}  c4 {[%clk 0:02:09]} 13. Nd2 {[%clk 0:02:10]}  Qc7 {[%clk 0:01:59]} 14. f5 {[%clk 0:01:58]}  exf5 {[%clk 0:01:57]} 15. Rxf5 {[%clk 0:01:58]}  Nf8 {[%clk 0:01:56]} 16. Rf1 {[%clk 0:01:53]}  Be6 {[%clk 0:01:55]} 17. Nc2 {[%clk 0:01:38]}  Ng6 {[%clk 0:01:51]} 18. b3 {[%clk 0:01:16]}  cxb3 {[%clk 0:01:49]} 19. axb3 {[%clk 0:01:15]}  Qd7 {[%clk 0:01:26]} 20. Bd3 {[%clk 0:01:14]}  g3 {[%clk 0:01:20]} 21. Qf3 {[%clk 0:01:01]}  Nh4 {[%clk 0:01:11]} 22. Qf4 {[%clk 0:00:35]}  gxh2 {[%clk 0:01:10]} 23. Nf3 {[%clk 0:00:31]}  Nxf3 {[%clk 0:01:00]} 24. Qxf3 {[%clk 0:00:28]}  h4 {[%clk 0:00:45]} 25. b4 {[%clk 0:00:29]}  O-O-O {[%clk 0:00:38]} 26. b5 {[%clk 0:00:28]}  Nb8 {[%clk 0:00:37]} 27. Rxa7 {[%clk 0:00:28]}  Rdg8 {[%clk 0:00:33]} 28. Bf4 {[%clk 0:00:17]}  Bg5 {[%clk 0:00:21]} 29. Ne3 {[%clk 0:00:11]}  Bxf4 {[%clk 0:00:19]} 30. Qxf4 {[%clk 0:00:12]}  Rg3 {[%clk 0:00:18]} 31. Be2 {[%clk 0:00:06]}  Rhg8 {[%clk 0:00:17]} 32. Rf3 {[%clk 0:00:02]}  R3g6 {[%clk 0:00:11]} 33. b6 {[%clk 0:00:02]}  h3 {[%clk 0:00:10]} 34. g3 {[%clk 0:00:02]}  Qc6 {[%clk 0:00:07]} 35. Bd3 {[%clk 0:00:02]}  R6g7 {[%clk 0:00:05]} 36. Ra8 {[%clk 0:00:02]}  Qxb6 {[%clk 0:00:06]} 37. Nf5 {[%clk 0:00:03]}  Kc7 {[%clk 0:00:03]} 38. Nxg7 {[%clk 0:00:02]}  Qb2 {[%clk 0:00:03]} 39. Rf2 {[%clk 0:00:02]}  Qc1+ {[%clk 0:00:02]} 40. Qxc1 {[%clk 0:00:02]} 1-0


[Site "https://www.chess.com"]

[Event "Titled Tuesday Blitz November 15 Early 2022"]
[White "Kuznetsova, Olga"]
[Black "Willathgamuwa, Kevin"]
[WhiteFideId "4191323"]
[BlackFideId "3214168"]
[WhiteElo "2134"]
[BlackElo "1962"]
[Result "0-1"]
[Round "02"]
[TimeControl "180+1"]
[Date "2022.11.16"]
[WhiteClock "0:00:16"]
[BlackClock "0:00:19"]

1. d4 {[%clk 0:03:00]}  Nf6 {[%clk 0:02:57]} 2. g3 {[%clk 0:03:00]}  e6 {[%clk 0:02:58]} 3. Bg2 {[%clk 0:03:00]}  d5 {[%clk 0:02:55]} 4. Nf3 {[%clk 0:02:59]}  Be7 {[%clk 0:02:56]} 5. O-O {[%clk 0:02:57]}  O-O {[%clk 0:02:57]} 6. b3 {[%clk 0:02:56]}  b6 {[%clk 0:02:58]} 7. c4 {[%clk 0:02:55]}  Bb7 {[%clk 0:02:58]} 8. Bb2 {[%clk 0:02:55]}  Nbd7 {[%clk 0:02:58]} 9. Ne5 {[%clk 0:02:56]}  Rc8 {[%clk 0:02:50]} 10. cxd5 {[%clk 0:02:49]}  Bxd5 {[%clk 0:02:49]} 11. Nc6 {[%clk 0:02:46]}  Bxc6 {[%clk 0:02:41]} 12. Bxc6 {[%clk 0:02:46]}  Nb8 {[%clk 0:02:39]} 13. Bb7 {[%clk 0:02:45]}  c5 {[%clk 0:02:39]} 14. Bxc8 {[%clk 0:02:45]}  Qxc8 {[%clk 0:02:40]} 15. dxc5 {[%clk 0:02:44]}  Qxc5 {[%clk 0:02:40]} 16. Nd2 {[%clk 0:02:34]}  Qh5 {[%clk 0:02:34]} 17. Nf3 {[%clk 0:02:14]}  Nc6 {[%clk 0:02:30]} 18. Bxf6 {[%clk 0:02:10]}  Bxf6 {[%clk 0:02:18]} 19. Rc1 {[%clk 0:02:11]}  Nb4 {[%clk 0:02:13]} 20. Rc4 {[%clk 0:01:54]}  Nd5 {[%clk 0:02:06]} 21. e4 {[%clk 0:01:52]}  Nc3 {[%clk 0:02:01]} 22. Qd3 {[%clk 0:01:46]}  Rd8 {[%clk 0:01:50]} 23. Qe3 {[%clk 0:01:46]}  Nxa2 {[%clk 0:01:42]} 24. e5 {[%clk 0:01:46]}  Be7 {[%clk 0:01:42]} 25. Qe4 {[%clk 0:01:16]}  Nb4 {[%clk 0:01:27]} 26. g4 {[%clk 0:01:03]}  Qh3 {[%clk 0:01:26]} 27. Ng5 {[%clk 0:00:50]}  Bxg5 {[%clk 0:01:17]} 28. Rxb4 {[%clk 0:00:51]}  g6 {[%clk 0:01:10]} 29. Rd4 {[%clk 0:00:48]}  Rxd4 {[%clk 0:01:07]} 30. Qxd4 {[%clk 0:00:48]}  Qxb3 {[%clk 0:01:07]} 31. Rd1 {[%clk 0:00:42]}  Qf3 {[%clk 0:01:02]} 32. Rd3 {[%clk 0:00:39]}  Qf4 {[%clk 0:00:51]} 33. Qxf4 {[%clk 0:00:33]}  Bxf4 {[%clk 0:00:52]} 34. Rd7 {[%clk 0:00:33]}  a5 {[%clk 0:00:46]} 35. Rb7 {[%clk 0:00:33]}  Bxe5 {[%clk 0:00:45]} 36. Rxb6 {[%clk 0:00:33]}  Kg7 {[%clk 0:00:41]} 37. Ra6 {[%clk 0:00:30]}  Bc3 {[%clk 0:00:41]} 38. Kg2 {[%clk 0:00:31]}  g5 {[%clk 0:00:38]} 39. h3 {[%clk 0:00:28]}  Kg6 {[%clk 0:00:36]} 40. Kf3 {[%clk 0:00:28]}  h5 {[%clk 0:00:32]} 41. Ke4 {[%clk 0:00:27]}  hxg4 {[%clk 0:00:30]} 42. hxg4 {[%clk 0:00:27]}  Bb4 {[%clk 0:00:30]} 43. f3 {[%clk 0:00:21]}  Kf6 {[%clk 0:00:28]} 44. Ra7 {[%clk 0:00:20]}  Bd2 {[%clk 0:00:24]} 45. Rd7 {[%clk 0:00:18]}  Bb4 {[%clk 0:00:23]} 46. Rb7 {[%clk 0:00:17]}  Bc3 {[%clk 0:00:23]} 47. Rb3 {[%clk 0:00:17]}  Bb4 {[%clk 0:00:23]} 48. Rd3 {[%clk 0:00:15]}  a4 {[%clk 0:00:19]} 49. Rd4 {[%clk 0:00:16]}  Bc3 {[%clk 0:00:17]} 50. Rxa4 {[%clk 0:00:16]}  Be5 {[%clk 0:00:18]} 51. Ra5 {[%clk 0:00:16]}  Bf4 {[%clk 0:00:18]} 52. Rb5 {[%clk 0:00:16]}  Bd6 {[%clk 0:00:19]} 53. Rb7 {[%clk 0:00:16]}  Bf4 {[%clk 0:00:19]} 54. Rb8 {[%clk 0:00:16]}  Bxb8 {[%clk 0:00:19]} 0-1


[Site "https://www.chess.com"]